Cogmind - Beta 15 @@@ ROGUE MODE // 2025.07.13 @ 16:31:55 Player: Suffixing Result: Destroyed by 3W-O3O(R) with Subdweller Machine Gun Performance ------------- Evolutions (0) 0 Regions Visited (2) 400 Robots Destroyed (33) 165 Value Destroyed (861) 861 Prototype IDs (0) 0 Alien Tech Used (0) 0 Bonus (0) 0 TOTAL SCORE: 1426 Bonus ------- None Cogmind --------- Core Integrity 0/250 Matter 2/300 Energy 100/100 System Corruption 2% Temperature Cool (0) Movement Rolling (120) Ox1 Location -10/Subcaves Parts ------- > --- POWER (1) -------- (None) > --- PROPULSION (2) --- Light Treads Subdweller Monowheel > --- UTILITY (2) ------ Large Storage Unit Hardened Light Armor Plating > --- WEAPON (2) ------- Improved Light Cannon > --- INVENTORY (15) --- Subdweller Monowheel VTOL Module VTOL Module VTOL Module VTOL Module Structural Scanner Hacking Suite Heavy Riot Gun Battle Rifle Subdweller Machine Gun Barrage Gun Improved Light Cannon Datajack Makeshift Axe Peak State ------------ > --- POWER ------------ Subdweller Power Source > --- PROPULSION ------- Light Treads Subdweller Monowheel > --- UTILITY ---------- Large Storage Unit Hardened Light Armor Plating > --- WEAPON ----------- Barrage Gun Subdweller Shrapnel Launcher > --- INVENTORY -------- Subdweller Monowheel VTOL Module VTOL Module VTOL Module VTOL Module Structural Scanner Hacking Suite Heavy Riot Gun Subdweller Beam Cannon Battle Rifle Subdweller Machine Gun Improved Light Cannon Improved Light Cannon Datajack Makeshift Axe [Rating: 16] Favorites ----------- Power Light Ion Engine Engine Light Ion Engine Propulsion Light Treads Treads Light Treads Leg Aluminum Leg Wheel Subdweller Monowheel Utility Large Storage Unit Storage Large Storage Unit Protection Hardened Light Armor Plating Weapon Improved Light Cannon Energy Cannon Subdweller Beam Cannon Ballistic Gun Assault Rifle Ballistic Cannon Improved Light Cannon Launcher Subdweller Shrapnel Launcher Build | -11 -10 -10 ------- Run | Yrd Mat Sub Slots Evolved . | . . . Power . | . . . Propulsion . | . . . Utility . | . . . Weapon . | . . . Parts Attached 18 | 2 7 9 Power 2 | . 1 1 Engine 2 | . 1 1 Core . | . . . Reactor . | . . . Propulsion 4 | 2 1 1 Treads 3 | 2 1 . Leg . | . . . Wheel 1 | . . 1 Hover . | . . . Flight . | . . . Utility 4 | . 3 1 Device . | . . . Storage 2 | . 2 . Processor . | . . . Hackware . | . . . Protection 2 | . 1 1 Artifact . | . . . Weapon 8 | . 2 6 Energy Gun . | . . . Energy Cannon 1 | . . 1 Ballistic Gun 2 | . . 2 Ballistic Cannon 4 | . 2 2 Launcher 1 | . . 1 Special Weapon . | . . . Impact Weapon . | . . . Slashing Weapon . | . . . Piercing Weapon . | . . . Special Melee Weapon . | . . . Unidentified Prototypes . | . . . Parts Lost 7 | . 2 5 Power 3 | . 1 2 Propulsion 2 | . 1 1 Utility 1 | . . 1 Weapon 1 | . . 1 Highest Loss Streak 2 | . 2 2 To Critical Strikes 1 | . . 1 Average Backups 10 | 3 7 14 Power . | 1 . . Propulsion 3 | 2 2 5 Utility 2 | . 2 2 Weapon 3 | . 2 4 Tool/Special . | . . . Unused Backups 18 | . 3 15 Power . | . . . Propulsion 5 | . . 5 Utility 7 | . 2 5 Weapon 5 | . 1 4 Tool/Special 1 | . . 1 Average Slot Usage (%) 93 | . 90 98 Engine 13 | . 13 13 Treads 24 | . 24 24 Wheel 1 | . . 3 Storage 14 | . 14 14 Protection 11 | . 9 14 Ballistic Gun 6 | . 9 2 Ballistic Cannon 15 | . 18 10 Launcher 4 | . . 11 Peak Build Rating 16 | 6 12 16 Average Rating 10 | 6 9 13 On Entrance 8 | 6 6 12 Naked Turns . | . . . Heaviest Build 148 | 13 148 46 Greatest Support 40 | 40 40 40 Greatest Overweight (x) 3 | . 3 2 Average Overweight (x) . | . . . Largest Inventory Capacity 30 | 8 30 15 Average Capacity 14 | 8 14 15 Most Carried 15 | 6 15 15 Average Carried 10 | 3 7 14 Final Capacity 15 | 8 15 15 Final Carried 14 | 2 14 14 Class Distribution -------------------- 99% | Mutant Dominant Class ---------------- Mutant | -10/Materials Mutant | -10/Subcaves Resources | -11 -10 -10 ----------- Run | Yrd Mat Sub Matter Collected 933 | 220 455 258 Remotely . | . . . Salvage Created 823 | . 703 120 Parts 66 | . 48 18 Haulers Intercepted 2 | . 2 . Recyclers Shooed . | . . . Parts Field Recycled . | . . . Retrieved Matter . | . . . Parts Self-Destructed 3 | . . 3 Prevented . | . . . Kills | -11 -10 -10 ------- Run | Yrd Mat Sub Combat Hostiles Destroyed 23 | . 15 8 Guns 8 | . 7 1 Cannons 9 | . 8 1 AOE 6 | . . 6 Classes Destroyed 8 | . 6 2 Worker 3 | . 3 . Builder 3 | . 3 . Hauler 2 | . 2 . Operator 2 | . 2 . Swarmer 3 | . 3 . Grunt 12 | . 12 . Artisan 1 | . . 1 Subdweller 8 | . . 8 Best Kill Streak 4 | . 4 2 Combat Bots Only 3 | . 3 2 Max Kills in Single Turn 2 | . 2 1 Gunslinging . | . . . Exploded 1 | . . 1 Melee . | . . . Uniques/NPCs Destroyed . | . . . Combat | -11 -10 -10 -------- Run | Yrd Mat Sub Hostile Shots Fired 154 | . 89 65 Missed 37 | . 17 20 Hits 117 | . 72 45 Projectile 117 | . 72 45 Critical Strikes 6 | . . 6 Damage Taken 1922 | . 784 1138 Core 267 | . 121 146 Absorbed by Shields . | . . . Regen/Repaired (Parts) 136 | . 136 . Core Remaining (%) 100 | 100 . . Volleys Fired 117 | . 72 45 Largest 2 | . 2 2 Hottest 120 | . 66 120 Shots Fired 203 | . 144 59 Gun 89 | . 86 3 Cannon 101 | . 58 43 Launcher 13 | . . 13 Special . | . . . Kinetic 190 | . 144 46 Thermal 13 | . . 13 Explosive . | . . . Electromagnetic . | . . . Robot Hit Streak 9 | . 9 8 Robot Miss Streak 6 | . 6 2 Penetration Max . | . . . Secondary Targets 1 | . 1 . Max Gunslinging Chain 1 | . 1 . Shots Hit Robots 116 | . 92 24 Core Hits 50 | . 38 12 Critical Kills . | . . . Critical Parts Destroyed . | . . . Critical Strikes 2 | . 1 1 Blast 2 | . 1 1 Melee Attacks . | . . . Impact . | . . . Slashing . | . . . Piercing . | . . . Sneak Attacks . | . . . Combat Hostiles . | . . . Follow-up Attacks . | . . . Damage Inflicted 2575 | . 1389 1186 Guns 667 | . 621 46 Cannons 1043 | . 747 296 Explosions 844 | . . 844 Melee . | . . . Ramming 21 | . 21 . Kinetic 2525 | . 1368 1157 Thermal 29 | . . 29 Explosive . | . . . Electromagnetic . | . . . Impact . | . . . Slashing . | . . . Piercing . | . . . Highest Corruption 2 | . 2 2 Average Corruption 2 | . 2 2 Corruption Purged . | . . . Corruption Blocked . | . . . Effects 18 | . 6 12 Message Errors 5 | . 3 2 Matter Fused 5 | . . 5 Heat Flow Errors 3 | . 1 2 Parts Rejected 1 | . 1 . Data Loss (minor) 4 | . 1 3 Overload Shots . | . . . Overflow Damage 1 | . 1 . Projectiles 1 | . 1 . Explosions . | . . . Melee . | . . . Knockbacks 11 | . 11 . Impact . | . . . Kinetic 10 | . 10 . Secondary 1 | . 1 . Self-Inflicted Damage 185 | . . 185 Shots 4 | . . 4 Rammed 4 | . 4 . Targets Rammed 4 | . 4 . Kicked . | . . . Crushed . | . . . Highest Temperature 336 | . 336 240 Average Temperature 55 | . 60 36 Received Heat Transfer 462 | . 348 114 Effects 2 | . 1 1 Interference 1 | . . 1 Damage (minor) 1 | . 1 . Siege Activations . | . . . Martial Activations . | . . . Shielding Activations . | . . . Robots Disrupted . | . . . Combat Hostiles . | . . . Robots Corrupted . | . . . Combat Hostiles . | . . . Parts Fried . | . . . Impact Corruptions . | . . . Robots Melted . | . . . Combat Hostiles . | . . . Parts Melted . | . . . Heat Transferred 37 | . . 37 Parts Sabotaged . | . . . Parts Stolen . | . . . Parts Stripped . | . . . Power Chain Reactions . | . . . Alert | -11 -10 -10 ------- Run | Yrd Mat Sub Maximum Alert Level . | . . . Low Security (%) 100 | 100 100 . Level 1 . | . . . Level 2 . | . . . Level 3 . | . . . Level 4 . | . . . Level 5 . | . . . High Security . | . . . Max Security . | . . . Peak Influence 106 | . 106 . Initial . | . . . Average 35 | . 36 . Influence Increases 471 | . 471 . Destroy 0b10 Robot/C 300 | . 300 . Destroy 0b10 Robot/NC 55 | . 55 . Destroy Leader 74 | . 74 . Successful Hack 9 | . 9 . Disable Machine 15 | . 15 . Destroy Structure 3 | . 3 . Partial Spotted 15 | . 15 . Influence Decreases 471 | . 460 11 Entered New Map 6 | . . 6 Time Decay 445 | . 440 5 Lost Part 20 | . 20 . Squads Dispatched 3 | . 3 . Investigation 1 | . 1 . Extermination . | . . . Reinforcement 2 | . 2 . Assault . | . . . Garrison . | . . . Intercept . | . . . Searches Triggered . | . . . Construction Impeded . | . . . Haulers Reinforced . | . . . Active Scanning Responses . | . . . Cargo Convoy Interrupts . | . . . Stealth | -11 -10 -10 --------- Run | Yrd Mat Sub Distress Signals 2 | . 2 . Communications Jammed . | . . . Distress Signals . | . . . Times Spotted 37 | . 25 12 Peak Tracking Total 4 | . 4 4 Tactical Retreats . | . . . Traps | -11 -10 -10 ------- Run | Yrd Mat Sub Traps Triggered 2 | . 2 . Indirectly . | . . . Trap Hack Attempts . | . . . Triggered . | . . . Disarmed . | . . . Reprogrammed . | . . . Reused . | . . . Traps Extracted . | . . . Installed . | . . . Triggered . | . . . Machines | -11 -10 -10 ---------- Run | Yrd Mat Sub Machines Disabled 2 | . 2 . Max in Single Turn 2 | . 2 . Machines Repaired . | . . . Machines Dismantled . | . . . Machines Sabotaged . | . . . Overloaded Fab Kills . | . . . Hacking | -11 -10 -10 --------- Run | Yrd Mat Sub Machines Accessed 4 | . 3 1 Terminals 2 | . 2 . Fabricators . | . . . Repair Stations 1 | . 1 . Recycling Units . | . . . Scanalyzers . | . . . Garrison Access . | . . . Total Hacks 10 | . 6 4 Successful 8 | . 4 4 Failed 2 | . 2 . Catastrophic . | . . . Database Lockouts . | . . . Manual 4 | . 4 . Terminals 4 | . 4 . Fabricators . | . . . Repair Stations 2 | . 2 . Recycling Units . | . . . Scanalyzers . | . . . Garrison Access . | . . . Terminal Hacks 4 | . . 4 Record 4 | . . 4 Fabricator Hacks . | . . . Repair Station Hacks 2 | . 2 . Scan Component 1 | . 1 . Repair 1 | . 1 . Recycling Unit Hacks . | . . . Scanalyzer . | . . . Garrison Access Hacks . | . . . Unauthorized Hacks 2 | . 2 . Terminals 2 | . 2 . Operators 1 | . 1 . Skim 1 | . 1 . Fabricators . | . . . Repair Stations . | . . . Recycling Units . | . . . Scanalyzers . | . . . Garrison Access . | . . . Data Cores Recovered . | . . . Used . | . . . Hacking Detections 1 | . 1 . Full Trace Events . | . . . Feedback Events . | . . . Feedback Blocked . | . . . Robot Schematics Acquired . | . . . Robots Built . | . . . Authchips . | . . . Time . | . . . Total Robot Build Rating . | . . . Part Schematics Acquired . | . . . Parts Built . | . . . Authchips . | . . . Time . | . . . Total Part Build Rating . | . . . Parts Repaired 1 | . 1 . Time 26 | . 26 . Parts Recycled . | . . . Recycled Matter . | . . . Retrieved Matter . | . . . Retrieved Components . | . . . Parts Scanalyzed . | . . . Part Schematics Acquired . | . . . Parts Damaged . | . . . Bothacking | -11 -10 -10 ------------ Run | Yrd Mat Sub Used RIF Installer . | . . . Robots Hacked . | . . . Non-combat . | . . . Combat . | . . . Robot Hacks Applied . | . . . Relay Couplers Released . | . . . Fabnet Peak Effective % . | . . . Robots Rewired . | . . . Allies Hacked . | . . . Hacks Repelled . | . . . Allies | -11 -10 -10 -------- Run | Yrd Mat Sub Total Allies . | . . . Largest Group . | . . . Highest-Rated Group . | . . . Highest-Rated Ally . | . . . Total Orders . | . . . Ally Attacks . | . . . Total Damage . | . . . Kills . | . . . Allies Corrupted . | . . . Allies Melted . | . . . Intel | -11 -10 -10 ------- Run | Yrd Mat Sub Active Infowar (turns) . | . . . Robot Analysis Total . | . . . Derelict Logs Recovered 1 | . . 1 Drone Launches . | . . . Drone Recoveries . | . . . Exploration | -11 -10 -10 ------------- Run | Yrd Mat Sub Turns Passed 2622 | 13 1638 971 Spaces Moved 1243 | 5 699 539 Core . | . . . Treads 1084 | 5 699 380 Legs . | . . . Wheels 159 | . . 159 Hover . | . . . Flight . | . . . Fastest Speed 120 | 160 160 120 Average Speed 168 | 160 180 153 Slowest Speed 400 | 160 400 240 Overloaded Moves . | . . . Propulsion Burnouts . | . . . Robots Hopped . | . . . Potential Cave-ins . | . . . Cave-ins Triggered . | . . . Exploration Rate (%) 43 | 3 89 39 Regions Visited 2 Branch Regions 1 Pre-discovered Areas . | . . . Known Exits Taken . | . . . Unknown Exits Taken 2 | 1 1 . Scrap Searched . | . . . Spaces Dug . | . . . Terrain Destroyed 123 | . 3 120 Melee . | . . . Projectile 6 | . 3 3 AOE 117 | . . 117 Terrain Rammed . | . . . Walls Destroyed . | . . . Machines Disabled . | . . . Actions | -11 -10 -10 --------- Run | Yrd Mat Sub Total 1578 | 12 940 626 Wait 134 | . 125 9 Move 1241 | 4 698 539 Hop . | . . . Pick Up 37 | 1 24 12 Fast Attach . | . . . Attach 14 | . 9 5 Detach . | . . . Swap 10 | 2 1 7 Drop 21 | 5 7 9 Fire 117 | . 72 45 Melee . | . . . Ram . | . . . Kick . | . . . Crush 4 | . 4 . Escape Stasis . | . . . Rewire . | . . . Trap . | . . . Miscellaneous . | . . . Route ------- -11/Scrapyard -10/Materials (discovered 5 exits: [*Mat x3] / [*Min] / *Sub) -10/Subcaves (discovered 1 exit: Rec) History --------- Turn | Location | Event 8 | -11/Scrapyard | Discovered new exit (range 3) 14 | -11/Scrapyard | Entered Materials 184 | -10/Materials | Discovered new exit (range 3) 317 | -10/Materials | Build established: Mutant 584 | -10/Materials | Discovered new exit (range 13) 914 | -10/Materials | Discovered new exit (range 3) 1056 | -10/Materials | Repaired Lgt. Treads 1222 | -10/Materials | Discovered new exit (range 14) 1362 | -10/Materials | Discovered new exit (range 12) 1652 | -10/Materials | Entered Subcaves 1653 | -10/Subcaves | Shifting Twisted Machinery released Mak. Axe 1653 | -10/Subcaves | Shifting Twisted Machinery released Sub. Shrapnel Launcher 1660 | -10/Subcaves | Learned Materials trap positions 1725 | -10/Subcaves | Visited Clippyterm 1730 | -10/Subcaves | Identified exit to Recycling 1763 | -10/Subcaves | Ambushed by angry Subdweller bent on revenge 1777 | -10/Subcaves | Core integrity fell below 50% 2241 | -10/Subcaves | Ambushed by Subdwellers from Twisted Machinery 2342 | -10/Subcaves | Shifting Twisted Machinery released Hvy. Riot Gun 2386 | -10/Subcaves | Shifting Twisted Machinery released Barrage Gun 2483 | -10/Subcaves | Shifting Twisted Machinery released Sub. Monowheel 2487 | -10/Subcaves | Shifting Twisted Machinery released Battle Cannon 2601 | -10/Subcaves | Core integrity fell below 20% 2623 | -10/Subcaves | Destroyed by 3W-O3O(R) with Subdweller Machine Gun Last Messages --------------- Machinery. 02484_ System corrupted: Heat flow error (+275). 02486_ Overheating: System interference. 02486_ Sub. Beam Cannon temporarily disabled. Battle Cannon falls loose from the Twisted Machinery. 02507_ Sub. Beam Cannon shoots sparks and powers down. 02509_ Dropped Broken Sub. Beam Cannon. 02530_ System corrupted: Component data lost. 02569_ UG-UTU(R) destroyed. 02569_ Sub. Shrapnel Launcher destroyed. 02583_ System corrupted: Matter fused (-5). 02587_ Acquired 17 matter. 02592_ Critical hit (Destroy). 02598_ Acquired 5 matter. 02599_ NW-YVC(R) destroyed. 02606_ Sub. Power Source destroyed. 02606_ Acquired 4 matter. 02611_ Acquired 3 matter. Map ----- +----------------------------------------------------+ | ????????????## ###########???????## ""###?? | | ????????????# # ## ##??????# #?? | | ????????????## #??????# #?? | | ????????????# #??????# & ###?? | | ????????????## ## ##?###?## & & "#???? | | ?????????????### ###### ### ] & "#???? | | ??????????????# ##?# !"& "#???? | | ??????????????# ##?## # ###"# ##???? | | ?????????# ## ### ######?#### ###?? | | ?????????# ### # #?????????## " ##? | | ?????????## ### ##?????????# "" #? | | ??????????## #?????????##""# #? | | ???????????# # ##????????###### ""#? | | ??????????# #####?????##### "###" ##? | | ?????????# ###### ????????#"" " #"" #?? | | ????????? ?????# ??????##"] ""# ##? | | ????????# ?????# ####??#### " ""## | | ???????? ??????## #????## "= "" # | | ?????????? ????????# ####### " #"#" # | | ??????????????????## ## ## ## " ####"]# | | ??????????????????# ## ## """#??#" # | | ?????????????????? ## ### """##?# # | | ????????????????### ### #?# """"### # | | ???????????????##;;### #?# ##"""" # | | ???????????????#;; ;;; ## ###" ## | | ??????????????##; ; @ ### #?###### # | | ??????????????#; ##?## ##??????##### | | ????????????### R ###???###???????????? | | ????????????# R *;;;;## ##???????????????????? | | ????????????# R ; ##% #????????????????????? | | ?????? &""&&& #####[ #???????????????????? | | ??????*%= !%& #???# #??????????????????? | | ??????&=" * ##??? #?????????????????? | | ?????"""""### #####????### #????????????????? | | ????? " ???###???????????# #????????????????? | | ??????#??????????????????? ???????????????? | | ?????????????????????????? ??????????????? | | ?????????????????????????? ?????????????? | | ?????????????????????????? ?????????????? | | ?????????????????????????? ??????????????? | | ???????????????????????????######????????????????? | | ?????????????????????????????????????????????????? | | ?????????????????????????????????????????????????? | | ?????????????????????????????????????????????????? | | ?????????????????????????????????????????????????? | | ?????????????????????????????????????????????????? | | ?????????????????????????????????????????????????? | | ?????????????????????????????????????????????????? | | ?????????????????????????????????????????????????? | | ?????????????????????????????????????????????????? | +----------------------------------------------------+ Best States ------------- Heat Dissipation 25 Energy Generation 15 Energy Capacity 250 Matter Stores 300 Matter Capacity 300 Sight Range 16 Terrain Scan Density 10 Armor Coverage 150 Evasion (%) 40 Recoil Reduction 2 Item Schematics ----------------- None Robot Schematics ------------------ None Fabricated ------------ Nothing Repaired ---------- Lgt. Treads | 2% | -10/Materials Alien Tech Used ----------------- None Achievements -------------- None Challenges ------------ None Game ------ Seed BackupNodeExoskeleton Manual? 0 Play Time 00:14:28 Cumulative 45.1 hours Start 2025.07.13 @ 16:19:07 End 2025.07.13 @ 16:31:55 Sessions 1 Manual Loads 0 Difficulty Rogue Special Mode None Game No. 173 Rogue 129 Adventurer 44 Explorer 0 Win Type - Total 1 Types 1/0/0/0/0/0/0/0/0/0 Lore% 57 Gallery% 39 Achievement% 40 Wizard Run 0 Options --------- Layout 1 ASCII 0 Keyboard 0 Movement Mouse Keybinds 0 Fullscreen 1 Font 24/Smallcaps Map View 50x35 Zoom Use 0% Tactical HUD 1 Map Filters NONE Filters NONE Steam 1 RUN: 9b871f28-08a3-4be2-abd2-652c6fc3e874